fUST/lending_fUST_20240721
["ID","MTS","AMOUNT","RATE_DAILY","PERIOD"]
[332775529,1721513438678,-500.0,0.00013698,2]
[332775530,1721513438688,-500.0,0.00013698,2]
[332775531,1721513438697,-500.0,0.00013698,2]
[332775532,1721513438707,-666.92,0.00013698,2]
[332775533,1721513438717,-1642.55,0.00013698,2]
[332775534,1721513438727,-683.66,0.00013698,2]
[332775535,1721513438737,-500.0,0.00013698,2]
[332775536,1721513438746,-500.0,0.00013698,2]
[332775537,1721513438757,-274.77327132,0.00013698,2]
[332775538,1721513438770,-500.0,0.00013698,2]
[332775539,1721513438779,-500.0,0.00013698,2]
[332775540,1721513438791,-500.0,0.00013698,2]
[332775541,1721513438800,-128.81656615,0.00013698,2]
[332775542,1721513438813,-373.2167906,0.00013698,2]
[332775543,1721513438822,-506.27059481,0.00013698,2]
[332775544,1721513438831,-570.65,0.00013698,2]
[332775545,1721513438840,-531.43294767,0.00013698,2]
[332775615,1721513932757,1023.68388853,9.999e-05,2]
[332775616,1721513949242,1023.68388853,9.999e-05,2]
[332775617,1721514011109,4754.52971637,9.999e-05,2]
[332775618,1721514072255,1023.68388853,9.999e-05,2]
[332775620,1721514297619,6753.24972208,9.999e-05,2]
[332775621,1721514304230,410.73111155,9.999e-05,2]
[332775636,1721514337508,155.94739222,9.999e-05,2]
[332775639,1721514368039,154.77557542,9.999e-05,2]
[332775640,1721514371058,24900.0,9.606e-05,2]
[332775643,1721514438611,154.77557542,9.999e-05,2]
[332775645,1721514477045,155.79358962,9.999e-05,2]
[332775650,1721514521979,6526.2655127,0.0002,120]
[332775651,1721514523611,1627.95625239,9.999e-05,2]
[332775652,1721514540581,202.7477229,9.999e-05,2]
[332775735,1721514632297,-250.0,0.00010019,2]
[332775738,1721514632308,-250.0,0.00010158,2]
[332775739,1721514632318,-203.7636435,0.00010162,2]
[332775742,1721514632337,-4765.3887571,0.00010162,2]
[332775744,1721514632347,-250.0,0.00010186,2]
[332775746,1721514632360,-250.0,0.00010214,2]
[332775749,1721514632374,-250.0,0.00010242,2]
[332775751,1721514632384,-250.0,0.00010269,2]
[332775753,1721514632394,-250.0,0.00010297,2]
[332775755,1721514632403,-250.0,0.00010325,2]
[332775757,1721514632413,-250.0,0.00010353,2]
[332775759,1721514632422,-300.0,0.00010372,2]
[332775761,1721514632433,-300.0,0.00010372,2]
[332775763,1721514632442,-8512.4600079,0.00010373,2]
[332775765,1721514632451,-250.0,0.00010381,2]
[332775767,1721514632461,-250.0,0.00010409,2]
[332775769,1721514632470,-250.0,0.00010437,2]
[332775771,1721514632480,-250.0,0.00010465,2]
[332775773,1721514632491,-250.0,0.00010492,2]
[332775775,1721514632500,-250.0,0.0001052,2]
[332775777,1721514632511,-250.0,0.00010548,2]
[332775778,1721514632520,-250.0,0.00010576,2]
[332775779,1721514632529,-250.0,0.00010604,2]
[332775781,1721514632539,-250.0,0.00010632,2]
[332775783,1721514632548,-250.0,0.0001066,2]
[332775784,1721514632557,-250.0,0.00010687,2]
[332775786,1721514632567,-1335.2403239,0.00010824,2]
[332775788,1721514632577,-460.5887686,0.000109,2]
[332775789,1721514632587,-488.38,0.00010959,2]
[332775790,1721514632596,-1320.37,0.00010959,2]
[332775791,1721514632605,-1100.31,0.00010959,2]
[332775793,1721514632616,-916.93,0.00010959,2]
[332775795,1721514632625,-764.1,0.00010959,2]
[332775797,1721514632635,-636.75,0.00010959,2]
[332775798,1721514632644,-530.63,0.00010959,2]
[332775800,1721514632654,-442.19,0.00010959,2]
[332775802,1721514632664,-368.49,0.00010959,2]
[332775804,1721514632673,-307.08,0.00010959,2]
[332775806,1721514632683,-255.9,0.00010959,2]
[332775807,1721514632692,-213.25,0.00010959,2]
[332775808,1721514632702,-177.71,0.00010959,2]
[332775810,1721514632712,-888.55,0.00010959,2]
[332775811,1721514632721,-420.0,0.00011409,2]
[332775812,1721514632731,-1051.92303724,0.0001212,2]
[332775814,1721514632741,-587.0,0.0001255,2]
[332775815,1721514632751,-293.8031846,0.00012845,2]
[332775816,1721514632761,-206.5817573,0.00012845,2]
[332775818,1721514632771,-153.0,0.00012878,2]
[332775819,1721514632781,-206.5817573,0.00012878,2]
[332775820,1721514632790,-586.3805138,0.00012878,2]
[332775821,1721514632800,-206.5817573,0.00012878,2]
[332775822,1721514632809,-153.0,0.00012878,2]
[332775823,1721514632820,-206.5817573,0.00012878,2]
[332775824,1721514632830,-153.0,0.00012878,2]
[332775825,1721514632840,-153.0,0.00013178,2]
[332775826,1721514632850,-206.5817573,0.00013178,2]
[332775827,1721514632859,-206.5817573,0.00013178,2]
[332775828,1721514632869,-153.0,0.00013178,2]
[332775829,1721514632879,-206.5817573,0.00013478,2]
[332775830,1721514632889,-153.0,0.00013478,2]
[332775831,1721514632898,-1592.87649198,0.00013598,2]
[332775832,1721514632909,-2000.0,0.00013598,2]
[332775833,1721514632919,-153.0,0.00013598,2]
[332775834,1721514632930,-153.0,0.00013598,2]
[332775835,1721514632941,-153.0,0.00013598,2]
[332775836,1721514632952,-153.0,0.00013598,2]
[332775837,1721514632962,-5303.4494987,0.00013623,2]
[332775838,1721514632973,-150.61046228,0.00013636,2]
[332775839,1721514632983,-1592.87649196,0.00013667,2]
[332775840,1721514632996,-293.8031846,0.00013667,2]
[332775841,1721514633005,-293.8031846,0.00013667,2]
[332775842,1721514633014,-293.8031846,0.00013667,2]
[332775843,1721514633027,-1981.57033408,0.00013676,2]
[332775844,1721514633036,-367.31035882,0.00013676,2]
[332775845,1721514633046,-1110.67424292,0.00013677,2]
[332775846,1721514633056,-131113.78219224,0.00013688,2]
[332775857,1721514638254,-202551.50797876,0.00013688,2]
[332775858,1721514638264,-196.3162119,0.00013696,2]
[332775859,1721514638274,-500.0,0.00013698,2]
[332775860,1721514638291,-500.0,0.00013698,2]
[332775861,1721514638301,-196.7156269,0.00013698,2]
[332775862,1721514638310,-500.0,0.00013698,2]
[332775863,1721514638319,-296.05322086,0.00013698,2]
[332775864,1721514638329,-619.62184223,0.00013698,2]
[332775865,1721514638339,-500.0,0.00013698,2]
[332775866,1721514638348,-500.0,0.00013698,2]
[332775867,1721514638360,-500.0,0.00013698,2]
[332775868,1721514638370,-500.0,0.00013698,2]
[332775869,1721514638381,-500.0,0.00013698,2]
[332775870,1721514638390,-500.0,0.00013698,2]
[332775871,1721514638399,-379.43937947,0.00013698,2]
[332775872,1721514638408,-512.27304389,0.00013698,2]
[332775873,1721514638418,-500.0,0.00013698,2]
[332775874,1721514638427,-500.0,0.00013698,2]
[332775875,1721514638436,-500.0,0.00013698,2]
[332775876,1721514638445,-500.0,0.00013698,2]
[332775877,1721514638455,-500.0,0.00013698,2]
[332775878,1721514638464,-500.0,0.00013698,2]
[332775879,1721514638474,-500.0,0.00013698,2]
[332775880,1721514638483,-786.36,0.00013698,2]
[332775881,1721514638493,-500.0,0.00013698,2]
[332775882,1721514638506,-335.08887657,0.00013698,2]
[332775883,1721514638515,-657.34,0.00013698,2]
[332775884,1721514638525,-840.32,0.00013698,2]
[332775885,1721514638534,-500.0,0.00013698,2]
[332775886,1721514638545,-500.0,0.00013698,2]
[332775887,1721514638555,-500.0,0.00013698,2]
[332775888,1721514638564,-565.37,0.00013698,2]
[332775889,1721514638574,-787.39,0.00013698,2]
[332775902,1721514638875,-500.0,0.00013698,2]
[332775903,1721514638886,-500.0,0.00013698,2]
[332775904,1721514638896,-500.0,0.00013698,2]
[332775905,1721514638906,-360.07193622,0.00013698,2]
[332775906,1721514638916,-500.0,0.00013698,2]
[332775907,1721514638926,-500.0,0.00013698,2]
[332775908,1721514638936,-555.93805008,0.00013698,2]
[332775909,1721514638945,-500.0,0.00013698,2]
[332775910,1721514638955,-500.0,0.00013698,2]
[332775912,1721514638965,-500.0,0.00013698,2]
[332775913,1721514638975,-500.0,0.00013698,2]
[332775914,1721514638984,-500.0,0.00013698,2]
[332775915,1721514638994,-500.0,0.00013698,2]
[332775916,1721514639003,-500.0,0.00013698,2]
[332775917,1721514639013,-500.0,0.00013698,2]
[332775918,1721514639022,-500.0,0.00013698,2]
[332775920,1721514639032,-479.02754092,0.00013698,2]
[332775921,1721514639042,-500.0,0.00013698,2]
[332775922,1721514639051,-931.72,0.00013698,2]
[332775923,1721514639060,-500.0,0.00013698,2]
[332775924,1721514639070,-554.43944664,0.00013698,2]
[332775925,1721514639079,-243.73701742,0.00013698,2]
[332775926,1721514639089,-500.0,0.00013698,2]
[332775927,1721514639098,-531.83,0.00013698,2]
[332775928,1721514639108,-500.0,0.00013698,2]
[332775929,1721514639118,-500.0,0.00013698,2]
[332775930,1721514639127,-500.0,0.00013698,2]
[332775931,1721514639137,-500.0,0.00013698,2]
[332775932,1721514639147,-500.0,0.00013698,2]
[332775933,1721514639157,-500.0,0.00013698,2]
[332775934,1721514639166,-500.0,0.00013698,2]
[332775935,1721514639176,-527.11963763,0.00013698,2]
[332775936,1721514639186,-500.0,0.00013698,2]
[332775937,1721514639195,-500.0,0.00013698,2]
[332775938,1721514639205,-500.0,0.00013698,2]
[332775939,1721514639214,-500.0,0.00013698,2]
[332775940,1721514639223,-500.0,0.00013698,2]
[332775941,1721514639232,-500.0,0.00013698,2]
[332775942,1721514639242,-500.0,0.00013698,2]
[332775943,1721514639252,-500.0,0.00013698,2]
[332775944,1721514639261,-725.65,0.00013698,2]
[332775945,1721514639271,-500.0,0.00013698,2]
[332775946,1721514639282,-471.64085717,0.00013698,2]
[332775947,1721514639292,-500.0,0.00013698,2]
[332775948,1721514639303,-500.0,0.00013698,2]
[332775949,1721514639312,-564.47,0.00013698,2]
[332775950,1721514639323,-150.0,0.00013698,2]
[332775951,1721514639332,-500.0,0.00013698,2]
[332775952,1721514639342,-500.0,0.00013698,2]
[332775953,1721514639351,-2043.27,0.00013698,2]
[332775954,1721514639361,-500.0,0.00013698,2]
[332775955,1721514639371,-381.21198987,0.00013698,2]
[332775956,1721514639381,-500.0,0.00013698,2]
[332775957,1721514639390,-500.0,0.00013698,2]
[332775958,1721514639400,-500.0,0.00013698,2]
[332775959,1721514639409,-500.0,0.00013698,2]
[332775960,1721514639419,-256.28354357,0.00013698,2]
[332775961,1721514639428,-500.0,0.00013698,2]
[332775962,1721514639443,-500.0,0.00013698,2]
[332775963,1721514639453,-500.0,0.00013698,2]
[332775964,1721514639462,-500.0,0.00013698,2]
[332775965,1721514639472,-500.0,0.00013698,2]
[332775966,1721514639482,-500.0,0.00013698,2]
[332775967,1721514639492,-500.0,0.00013698,2]
[332775968,1721514639502,-500.0,0.00013698,2]
[332775969,1721514639512,-500.0,0.00013698,2]
[332775970,1721514639522,-500.0,0.00013698,2]
[332775971,1721514639532,-500.0,0.00013698,2]
[332775972,1721514639541,-500.0,0.00013698,2]
[332775973,1721514639550,-500.0,0.00013698,2]
[332775974,1721514639559,-500.0,0.00013698,2]
[332775975,1721514639569,-500.0,0.00013698,2]
[332775976,1721514639579,-508.54564734,0.00013698,2]
[332775977,1721514639588,-500.0,0.00013698,2]
[332775978,1721514639598,-500.0,0.00013698,2]
[332775979,1721514639607,-500.0,0.00013698,2]
[332775980,1721514639617,-513.04,0.00013698,2]
[332775981,1721514639627,-500.0,0.00013698,2]
[332775982,1721514639637,-610.63,0.00013698,2]
[332775983,1721514639647,-1782.77,0.00013698,2]
[332775984,1721514639656,-500.0,0.00013698,2]
[332775985,1721514639666,-500.0,0.00013698,2]
[332775986,1721514639676,-500.0,0.00013698,2]
[332775987,1721514639686,-500.0,0.00013698,2]
[332775988,1721514639695,-500.0,0.00013698,2]
[332775989,1721514639705,-500.0,0.00013698,2]
[332775990,1721514639714,-2330.1,0.00013698,2]
[332775991,1721514639724,-500.0,0.00013698,2]
[332775992,1721514639733,-500.0,0.00013698,2]
[332775993,1721514639743,-686.23,0.00013698,2]
[332775994,1721514639752,-500.0,0.00013698,2]
[332775995,1721514639762,-500.0,0.00013698,2]
[332775996,1721514639771,-500.0,0.00013698,2]
[332775997,1721514639781,-634.95,0.00013698,2]
[332775998,1721514639791,-502.79,0.00013698,2]
[332775999,1721514639800,-770.05,0.00013698,2]
[332776000,1721514639810,-1314.9,0.00013698,2]
[332776001,1721514639820,-500.0,0.00013698,2]
[332776002,1721514639830,-500.0,0.00013698,2]
[332776003,1721514639840,-500.0,0.00013698,2]
[332776004,1721514639849,-1753.88,0.00013698,2]
[332776005,1721514639860,-1133.41,0.00013698,2]
[332776006,1721514639869,-500.0,0.00013698,2]
[332776007,1721514639878,-528.81,0.00013698,2]
[332776008,1721514639888,-500.0,0.00013698,2]
[332776009,1721514639898,-500.0,0.00013698,2]
[332776010,1721514639907,-500.0,0.00013698,2]
[332776011,1721514639917,-951.7,0.00013698,2]
[332776012,1721514639926,-948.17,0.00013698,2]
[332776013,1721514639936,-500.0,0.00013698,2]
[332776015,1721514639946,-500.0,0.00013698,2]
[332776017,1721514639955,-2397.5,0.00013698,2]
[332776019,1721514639965,-500.0,0.00013698,2]
[332776021,1721514639974,-254.88943529,0.00013698,2]
[332776022,1721514639984,-500.0,0.00013698,2]
[332776024,1721514639994,-500.0,0.00013698,2]
[332776026,1721514640003,-546.17,0.00013698,2]
[332776028,1721514640013,-500.0,0.00013698,2]
[332776029,1721514640023,-500.0,0.00013698,2]
[332776031,1721514640033,-2000.0,0.00013698,2]
[332776033,1721514640042,-500.0,0.00013698,2]
[332776034,1721514640051,-509.41848931,0.00013698,2]
[332776035,1721514640062,-510.42578769,0.00013698,2]
[332776036,1721514640071,-547.87,0.00013698,2]
[332776037,1721514640081,-500.0,0.00013698,2]
[332776038,1721514640090,-500.0,0.00013698,2]
[332776039,1721514640100,-502.60980733,0.00013698,2]
[332776040,1721514640110,-500.0,0.00013698,2]
[332776041,1721514640119,-500.0,0.00013698,2]
[332776042,1721514640129,-985.79,0.00013698,2]
[332776043,1721514640139,-500.0,0.00013698,2]
[332776044,1721514640148,-500.0,0.00013698,2]
[332776046,1721514640158,-510.58623771,0.00013698,2]
[332776048,1721514640167,-500.0,0.00013698,2]
[332776050,1721514640177,-3348.03,0.00013698,2]
[332776052,1721514640187,-501.72983271,0.00013698,2]
[332776054,1721514640197,-513.24561122,0.00013698,2]
[332776056,1721514640206,-1190.13,0.00013698,2]
[332776058,1721514640215,-705.36,0.00013698,2]
[332776059,1721514640225,-500.0,0.00013698,2]
[332776061,1721514640234,-500.0,0.00013698,2]
[332776063,1721514640244,-502.63355936,0.00013698,2]
[332776065,1721514640253,-500.0,0.00013698,2]
[332776066,1721514640263,-500.0,0.00013698,2]
[332776067,1721514640272,-1511.48,0.00013698,2]
[332776068,1721514640285,-500.0,0.00013698,2]
[332776069,1721514640295,-500.0,0.00013698,2]
[332776070,1721514640304,-500.0,0.00013698,2]
[332776071,1721514640314,-500.0,0.00013698,2]
[332776073,1721514640324,-500.0,0.00013698,2]
[332776075,1721514640335,-500.0,0.00013698,2]
[332776077,1721514640344,-500.0,0.00013698,2]
[332776079,1721514640355,-500.0,0.00013698,2]
[332776081,1721514640366,-500.0,0.00013698,2]
[332776082,1721514640375,-500.0,0.00013698,2]
[332776084,1721514640385,-500.0,0.00013698,2]
[332776086,1721514640395,-500.0,0.00013698,2]
[332776087,1721514640404,-714.36,0.00013698,2]
[332776088,1721514640413,-500.0,0.00013698,2]
[332776089,1721514640422,-500.0,0.00013698,2]
[332776090,1721514640432,-500.0,0.00013698,2]
[332776091,1721514640441,-500.0,0.00013698,2]
[332776092,1721514640451,-500.0,0.00013698,2]
[332776093,1721514640461,-774.62,0.00013698,2]
[332776094,1721514640470,-500.0,0.00013698,2]
[332776095,1721514640479,-500.0,0.00013698,2]
[332776096,1721514640488,-708.74,0.00013698,2]
[332776097,1721514640499,-500.0,0.00013698,2]
[332776098,1721514640509,-670.66,0.00013698,2]
[332776099,1721514640518,-500.0,0.00013698,2]
[332776100,1721514640528,-608.63406425,0.00013698,2]
[332776102,1721514640538,-842.56,0.00013698,2]
[332776104,1721514640547,-500.0,0.00013698,2]
[332776106,1721514640557,-977.66,0.00013698,2]
[332776107,1721514640567,-1537.43,0.00013698,2]
[332776108,1721514640577,-515.84546709,0.00013698,2]
[332776109,1721514640587,-500.0,0.00013698,2]
[332776110,1721514640597,-500.0,0.00013698,2]
[332776111,1721514640606,-500.0,0.00013698,2]
[332776112,1721514640616,-508.33268368,0.00013698,2]
[332776113,1721514640626,-2180.9,0.00013698,2]
[332776114,1721514640636,-653.72,0.00013698,2]
[332776115,1721514640645,-500.0,0.00013698,2]
[332776116,1721514640655,-500.0,0.00013698,2]
[332776117,1721514640664,-500.0,0.00013698,2]
[332776118,1721514640674,-500.0,0.00013698,2]
[332776119,1721514640683,-1347.32,0.00013698,2]
[332776120,1721514640693,-2154.33,0.00013698,2]
[332776121,1721514640702,-621.54,0.00013698,2]
[332776122,1721514640712,-500.0,0.00013698,2]
[332776123,1721514640721,-502.76716104,0.00013698,2]
[332776124,1721514640731,-500.0,0.00013698,2]
[332776125,1721514640740,-500.0,0.00013698,2]
[332776126,1721514640751,-500.0,0.00013698,2]
[332776127,1721514640760,-1584.23,0.00013698,2]
[332776128,1721514640770,-1364.4,0.00013698,2]
[332776129,1721514640780,-500.0,0.00013698,2]
[332776130,1721514640789,-500.0,0.00013698,2]
[332776131,1721514640799,-500.0,0.00013698,2]
[332776132,1721514640809,-500.0,0.00013698,2]
[332776133,1721514640818,-500.0,0.00013698,2]
[332776134,1721514640828,-664.8,0.00013698,2]
[332776135,1721514640838,-500.0,0.00013698,2]
[332776136,1721514640848,-500.0,0.00013698,2]
[332776137,1721514640858,-500.0,0.00013698,2]
[332776138,1721514640867,-556.66494551,0.00013698,2]
[332776139,1721514640877,-500.0,0.00013698,2]
[332776140,1721514640886,-500.0,0.00013698,2]
[332776141,1721514640896,-500.0,0.00013698,2]
[332776142,1721514640906,-500.0,0.00013698,2]
[332776143,1721514640915,-500.0,0.00013698,2]
[332776144,1721514640925,-500.0,0.00013698,2]
[332776145,1721514640935,-500.4941119,0.00013698,2]
[332776146,1721514640944,-500.0,0.00013698,2]
[332776147,1721514640954,-500.0,0.00013698,2]
[332776148,1721514640963,-500.0,0.00013698,2]
[332776149,1721514640975,-500.0,0.00013698,2]
[332776150,1721514640985,-500.0,0.00013698,2]
[332776151,1721514640995,-1522.07,0.00013698,2]
[332776152,1721514641004,-500.0,0.00013698,2]
[332776153,1721514641015,-500.0,0.00013698,2]
[332776154,1721514641025,-1615.88,0.00013698,2]
[332776155,1721514641036,-500.0,0.00013698,2]
[332776156,1721514641045,-500.0,0.00013698,2]
[332776157,1721514641054,-665.84,0.00013698,2]
[332776158,1721514641065,-500.0,0.00013698,2]
[332776159,1721514641074,-500.0,0.00013698,2]
[332776160,1721514641084,-518.24520718,0.00013698,2]
[332776161,1721514641095,-1554.01,0.00013698,2]
[332776162,1721514641105,-500.0,0.00013698,2]
[332776163,1721514641117,-500.0,0.00013698,2]
[332776164,1721514641126,-500.0,0.00013698,2]
[332776165,1721514641137,-500.0,0.00013698,2]
[332776166,1721514641147,-583.99,0.00013698,2]
[332776167,1721514641157,-500.0,0.00013698,2]
[332776168,1721514641168,-500.0,0.00013698,2]
[332776169,1721514641177,-500.0,0.00013698,2]
[332776170,1721514641187,-500.0,0.00013698,2]
[332776171,1721514641196,-658.32,0.00013698,2]
[332776172,1721514641205,-500.0,0.00013698,2]
[332776173,1721514641215,-710.92,0.00013698,2]
[332776174,1721514641224,-595.58,0.00013698,2]
[332776175,1721514641233,-1044.13,0.00013698,2]
[332776176,1721514641243,-500.0,0.00013698,2]
[332776177,1721514641257,-783.48,0.00013698,2]
[332776178,1721514641268,-500.0,0.00013698,2]
[332776179,1721514641277,-1353.48,0.00013698,2]
[332776180,1721514641292,-500.0,0.00013698,2]
[332776181,1721514641302,-500.0,0.00013698,2]
[332776182,1721514641313,-554.7,0.00013698,2]
[332776183,1721514641324,-736.98,0.00013698,2]
[332776184,1721514641333,-1798.83,0.00013698,2]
[332776185,1721514641343,-500.0,0.00013698,2]
[332776186,1721514641353,-1875.16,0.00013698,2]
[332776187,1721514641366,-500.0,0.00013698,2]
[332776188,1721514641377,-1171.34,0.00013698,2]
[332776189,1721514641387,-500.0,0.00013698,2]
[332776190,1721514641397,-4752.88,0.00013698,2]
[332776191,1721514641408,-1096.7,0.00013698,2]
[332776192,1721514641418,-510.31,0.00013698,2]
[332776193,1721514641427,-500.0,0.00013698,2]
[332776194,1721514641437,-2430.2,0.00013698,2]
[332776195,1721514641448,-500.0,0.00013698,2]
[332776196,1721514641459,-500.0,0.00013698,2]
[332776197,1721514641470,-500.0,0.00013698,2]
[332776198,1721514641480,-1596.67,0.00013698,2]
[332776199,1721514641491,-733.53,0.00013698,2]
[332776200,1721514641504,-500.0,0.00013698,2]
[332776201,1721514641515,-602.82,0.00013698,2]
[332776202,1721514641526,-2037.08,0.00013698,2]
[332776203,1721514641536,-500.0,0.00013698,2]
[332776204,1721514641547,-953.38,0.00013698,2]
[332776205,1721514641556,-824.0,0.00013698,2]
[332776206,1721514641566,-2037.5,0.00013698,2]
[332776207,1721514641577,-500.0,0.00013698,2]
[332776208,1721514641587,-2724.05,0.00013698,2]
[332776209,1721514641596,-560.26,0.00013698,2]
[332776210,1721514641605,-500.0,0.00013698,2]
[332776211,1721514641615,-500.0,0.00013698,2]
[332776212,1721514641625,-532.84,0.00013698,2]
[332776213,1721514641635,-1760.66,0.00013698,2]
[332776214,1721514641647,-500.0,0.00013698,2]
[332776215,1721514641658,-3511.84,0.00013698,2]
[332776216,1721514641668,-500.0,0.00013698,2]
[332776217,1721514641678,-367.30137337,0.00013698,2]
[332776218,1721514641688,-500.0,0.00013698,2]
[332776219,1721514641697,-1886.79,0.00013698,2]
[332776220,1721514641707,-580.12,0.00013698,2]
[332776221,1721514641717,-500.0,0.00013698,2]
[332776222,1721514641729,-500.0,0.00013698,2]
[332776223,1721514641740,-503.06,0.00013698,2]
[332776224,1721514641752,-500.0,0.00013698,2]
[332776225,1721514641762,-500.0,0.00013698,2]
[332776226,1721514641771,-1069.07,0.00013698,2]
[332776227,1721514641782,-2797.75,0.00013698,2]
[332776228,1721514641791,-567.0,0.00013698,2]
[332776229,1721514641803,-500.0,0.00013698,2]
[332776230,1721514641813,-526.66,0.00013698,2]
[332776231,1721514641825,-500.0,0.00013698,2]
[332776232,1721514641835,-353.74643827,0.00013698,2]
[332776233,1721514641845,-521.4783236,0.00013698,2]
[332776234,1721514641856,-538.25,0.00013698,2]
[332776235,1721514641865,-500.0,0.00013698,2]
[332776236,1721514641875,-500.0,0.00013698,2]
[332776237,1721514641885,-1260.28,0.00013698,2]
[332776238,1721514641895,-500.0,0.00013698,2]
[332776239,1721514641904,-500.0,0.00013698,2]
[332776240,1721514641914,-500.0,0.00013698,2]
[332776241,1721514641926,-742.99,0.00013698,2]
[332776242,1721514641936,-958.99,0.00013698,2]
[332776243,1721514641947,-500.0,0.00013698,2]
[332776244,1721514641958,-500.0,0.00013698,2]
[332776245,1721514641970,-1442.2,0.00013698,2]
[332776246,1721514641981,-500.0,0.00013698,2]
[332776247,1721514641991,-1333.09,0.00013698,2]
[332776248,1721514642002,-500.0,0.00013698,2]
[332776249,1721514642013,-7321.58,0.00013698,2]
[332776250,1721514642023,-15051.06,0.00013698,2]
[332776251,1721514642033,-500.0,0.00013698,2]
[332776252,1721514642043,-579.02,0.00013698,2]
[332776253,1721514642052,-500.0,0.00013698,2]
[332776254,1721514642062,-2364.7,0.00013698,2]
[332776255,1721514642071,-2456.13,0.00013698,2]
[332776256,1721514642081,-4222.18,0.00013698,2]
[332776257,1721514642091,-500.0,0.00013698,2]
[332776258,1721514642100,-3193.67,0.00013698,2]
[332776259,1721514642109,-500.0,0.00013698,2]
[332776260,1721514642119,-799.9,0.00013698,2]
[332776261,1721514642128,-727.95,0.00013698,2]
[332776262,1721514642138,-500.0,0.00013698,2]
[332776263,1721514642147,-500.0,0.00013698,2]
[332776264,1721514642159,-966.18,0.00013698,2]
[332776265,1721514642170,-1550.89,0.00013698,2]
[332776266,1721514642180,-524.2,0.00013698,2]
[332776267,1721514642189,-1714.64,0.00013698,2]
[332776268,1721514642199,-2662.53,0.00013698,2]
[332776269,1721514642208,-500.0,0.00013698,2]
[332776270,1721514642218,-500.0,0.00013698,2]
[332776271,1721514642228,-4025.06,0.00013698,2]
[332776272,1721514642239,-588.3,0.00013698,2]
[332776273,1721514642250,-870.68,0.00013698,2]
[332776274,1721514642260,-500.0,0.00013698,2]
[332776275,1721514642270,-1142.98,0.00013698,2]
[332776276,1721514642284,-3890.36,0.00013698,2]
[332776277,1721514642296,-517.38,0.00013698,2]
[332776278,1721514642305,-500.0,0.00013698,2]
[332776279,1721514642314,-500.0,0.00013698,2]
[332776280,1721514642324,-500.0,0.00013698,2]
[332776281,1721514642334,-1151.67,0.00013698,2]
[332776282,1721514642346,-500.0,0.00013698,2]
[332776283,1721514642358,-500.0,0.00013698,2]
[332776284,1721514642369,-500.0,0.00013698,2]
[332776285,1721514642380,-500.0,0.00013698,2]
[332776286,1721514642389,-500.0,0.00013698,2]
[332776287,1721514642399,-500.0,0.00013698,2]
[332776288,1721514642410,-2311.41,0.00013698,2]
[332776289,1721514642419,-1010.7,0.00013698,2]
[332776290,1721514642430,-1584.61,0.00013698,2]
[332776291,1721514642439,-500.0,0.00013698,2]
[332776292,1721514642448,-689.36,0.00013698,2]